bitfinex/quotes_ETHUSD_20230110
["timestamp","ask_amount","ask_price","bid_price","bid_amount"]
[1673360312803,26.28996064,1334.1,1333.8,12.1364]
[1673360312989,27.40955836,1334.1,1333.8,12.1364]
[1673360313368,28.28920833,1334.1,1333.8,12.1364]
[1673360314405,28.28920833,1334.1,1333.8,12.13421299]
[1673360315226,29.97340968,1334.1,1333.8,12.13421299]
[1673360315437,3.79766064,1334.0,1333.8,12.13421299]
[1673360315888,3.79766064,1334.0,1333.8,0.097]
[1673360316076,1.18559772,1334.1,1333.8,24.171928]
[1673360316286,1.11959772,1334.1,1333.8,24.268928]
[1673360319240,1.11959772,1334.1,1333.8,24.218928]
[1673360319615,1.11959772,1334.1,1333.8,16.721558]
[1673360320103,1.11959772,1334.1,1333.8,24.218928]
[1673360320613,10.29966907,1334.1,1333.8,0.097]
[1673360320788,2.80779907,1334.1,1333.8,7.49734]
[1673360320996,2.80379907,1334.1,1333.8,10.09434]
[1673360321369,29.08868971,1334.1,1333.8,0.097]
[1673360321516,1.11959772,1334.0,1333.7,20.3289]
[1673360321886,14.99362,1333.9,1333.7,20.3289]
[1673360322048,14.99762,1333.9,1333.7,20.3289]
[1673360322257,14.99762,1333.9,1333.7,0.097]
[1673360322466,14.99762,1333.9,1333.6,1.6726557]
[1673360322817,14.99762,1333.9,1333.6,2.15994413]
[1673360322818,0.004,1333.9,1333.6,2.15994413]
[1673360322991,19.91116836,1333.9,1333.6,0.3236557]
[1673360323208,4.92125836,1333.9,1333.6,0.3236557]
[1673360323397,4.92125836,1333.9,1333.6,7.8220157]
[1673360323398,4.91725836,1333.9,1333.6,7.8220157]
[1673360323604,4.91725836,1333.9,1333.6,7.9190157]
[1673360323979,6.74834075,1333.9,1333.6,7.9190157]
[1673360324183,6.75234075,1333.9,1333.6,7.9190157]
[1673360326132,14.24916075,1333.9,1333.6,7.9190157]
[1673360326459,3.79766064,1333.8,1333.6,0.4206557]
[1673360326671,13.46976872,1333.8,1333.6,0.3236557]
[1673360326876,5.97625872,1333.8,1333.6,0.3236557]
[1673360328165,14.59329644,1333.8,1333.6,0.3236557]
[1673360328582,22.09073644,1333.8,1333.6,0.3236557]
[1673360328756,5.71739483,1333.7,1333.6,0.3236557]
[1673360328966,20.71725483,1333.7,1333.6,0.3236557]
[1673360329542,13.21932483,1333.7,1333.6,0.3236557]
[1673360329753,20.71725483,1333.7,1333.6,0.3236557]
[1673360330331,13.21932483,1333.7,1333.6,0.3236557]
[1673360330753,20.71725483,1333.7,1333.6,0.3236557]
[1673360331021,13.21932483,1333.7,1333.6,0.3236557]
[1673360331172,24.27317291,1333.7,1333.6,0.3236557]
[1673360331382,29.18467291,1333.7,1333.6,0.3236557]
[1673360331643,28.43413512,1333.7,1333.6,0.3236557]
[1673360332014,10.40707377,1333.7,1333.6,0.3236557]
[1673360332219,17.90300377,1333.7,1333.6,0.3236557]
[1673360332443,32.89886377,1333.7,1333.6,0.3236557]
[1673360332809,24.27975483,1333.7,1333.6,0.3236557]
[1673360333283,31.77768483,1333.7,1333.6,0.3236557]
[1673360333495,32.89886377,1333.7,1333.6,0.3236557]
[1673360333740,25.40093377,1333.7,1333.6,0.3236557]
[1673360333948,24.27975483,1333.7,1333.6,0.3236557]
[1673360334273,32.89886377,1333.7,1333.6,0.3236557]
[1673360334962,24.27975483,1333.7,1333.6,0.3236557]
[1673360335376,31.77768483,1333.7,1333.6,0.3236557]
[1673360336439,31.77968483,1333.7,1333.6,0.3236557]
[1673360336644,31.77768483,1333.7,1333.6,0.3236557]
[1673360337432,32.89886377,1333.7,1333.6,0.3236557]
[1673360338883,34.24586377,1333.7,1333.6,0.3236557]
[1673360340841,35.93006512,1333.7,1333.6,0.3236557]
[1673360341518,35.93006512,1333.7,1333.6,0.32031209]
[1673360342098,34.80888618,1333.7,1333.6,0.32031209]
[1673360342350,36.15925108,1333.7,1333.6,0.32031209]
[1673360342581,35.03888618,1333.7,1333.6,0.32031209]
[1673360342753,42.78808618,1333.7,1333.6,0.32031209]
[1673360343410,45.03370036,1333.7,1333.6,0.32031209]
[1673360343835,42.78808618,1333.7,1333.6,0.32031209]
[1673360345619,45.03370036,1333.7,1333.6,0.32031209]
[1673360345891,42.78808618,1333.7,1333.6,0.32031209]
[1673360346672,43.90840894,1333.7,1333.6,0.32031209]
[1673360349135,36.41047894,1333.7,1333.6,0.32031209]
[1673360349361,17.90214759,1333.7,1333.6,0.32031209]
[1673360349522,17.33964759,1333.7,1333.6,0.32031209]
[1673360349733,24.83757759,1333.7,1333.6,0.32031209]
[1673360350139,34.24970894,1333.7,1333.6,0.32031209]
[1673360350562,41.99010894,1333.7,1333.6,0.32031209]
[1673360350791,33.37185618,1333.7,1333.6,0.32031209]
[1673360350999,26.76485703,1333.7,1333.6,0.32031209]
[1673360351205,19.26692558,1333.7,1333.6,0.32031209]
[1673360351884,9.84232423,1333.7,1333.6,0.32031209]
[1673360352195,15.42052004,1333.7,1333.6,7.58916875]
[1673360352501,15.42052004,1333.7,1333.6,7.68616875]
[1673360352713,12.42052004,1333.7,1333.6,7.68616875]
[1673360353311,12.42052004,1333.7,1333.6,0.41731209]
[1673360353519,12.42052004,1333.7,1333.6,0.32031209]
[1673360353520,12.42252004,1333.7,1333.6,0.32031209]
[1673360353736,12.42052004,1333.7,1333.6,0.32031209]
[1673360354285,12.42052004,1333.7,1333.6,0.27031209]
[1673360354608,3.80166064,1333.7,1333.6,0.27031209]
[1673360354821,3.79766064,1333.7,1333.6,0.27031209]
[1673360355034,3.79766064,1333.7,1333.6,1.49131209]
[1673360355035,4.91859004,1333.7,1333.6,1.49131209]
[1673360355185,4.91859004,1333.7,1333.6,0.27031209]
[1673360356240,12.41652004,1333.7,1333.6,0.27031209]
[1673360356450,12.42052004,1333.7,1333.6,0.27031209]
[1673360357130,4.92259004,1333.7,1333.6,0.27031209]
[1673360357341,4.91859004,1333.7,1333.6,0.27031209]
[1673360357717,12.41652004,1333.7,1333.6,0.27031209]
[1673360357970,4.92259004,1333.7,1333.6,0.27031209]
[1673360358187,3.79766064,1333.7,1333.6,2.07731209]
[1673360358347,4.91859004,1333.7,1333.6,2.07731209]
[1673360358551,3.79766064,1333.7,1333.6,2.07731209]
[1673360358898,4.91859004,1333.7,1333.6,0.27031209]
[1673360359073,1.1209294,1333.7,1333.6,0.27031209]
[1673360359290,16.1167894,1333.7,1333.6,0.27031209]
[1673360359498,8.6228594,1333.7,1333.6,0.27031209]
[1673360361022,10.30706075,1333.7,1333.6,0.27031209]
[1673360361233,25.30292075,1333.7,1333.6,0.27031209]
[1673360361403,24.18199135,1333.7,1333.6,0.27031209]
[1673360361612,21.60444268,1333.7,1333.6,0.27031209]
[1673360361828,27.97965199,1333.7,1333.6,0.27031209]
[1673360362043,20.48172199,1333.7,1333.6,0.27031209]
[1673360364150,30.22526617,1333.7,1333.6,0.27031209]
[1673360364363,34.28446368,1333.7,1333.6,0.27031209]
[1673360364763,32.60026233,1333.7,1333.6,0.27031209]
[1673360365415,35.40731128,1333.7,1333.6,0.27031209]
[1673360365603,33.1616971,1333.7,1333.6,0.27031209]
[1673360365818,30.58464815,1333.7,1333.6,0.27031209]
[1673360366174,27.24001692,1333.7,1333.6,0.27031209]
[1673360366708,46.14604692,1333.7,1333.6,0.27031209]
[1673360367016,35.83981815,1333.7,1333.6,0.27031209]
[1673360367188,31.15064328,1333.7,1333.6,0.27031209]
[1673360367396,23.42271328,1333.7,1333.6,0.27031209]
[1673360367603,30.92064328,1333.7,1333.6,0.27031209]
[1673360368023,23.42271328,1333.7,1333.6,0.27031209]
[1673360368525,15.01520411,1333.7,1333.6,0.27031209]
[1673360368799,10.9560066,1333.7,1333.6,0.27031209]
[1673360369224,16.5464366,1333.7,1333.6,0.27031209]
[1673360370018,24.0443666,1333.7,1333.6,0.27031209]
[1673360370692,16.5464366,1333.7,1333.6,0.27031209]
[1673360370907,24.0443666,1333.7,1333.6,0.27031209]
[1673360371074,34.35105173,1333.7,1333.6,0.27031209]
[1673360371952,26.85312173,1333.7,1333.6,0.27031209]
[1673360372109,30.4855269,1333.7,1333.6,0.27031209]
[1673360372320,37.9834569,1333.7,1333.6,0.27031209]
[1673360374105,36.29911094,1333.7,1333.6,0.27031209]
[1673360374544,44.15051094,1333.7,1333.6,0.27031209]
[1673360376792,45.49951094,1333.7,1333.6,0.27031209]
[1673360376939,42.92075581,1333.7,1333.6,0.27031209]
[1673360377155,46.28917709,1333.7,1333.6,0.27031209]
[1673360378326,45.72949436,1333.7,1333.6,0.27031209]
[1673360378572,42.92075581,1333.7,1333.6,0.27031209]
[1673360380143,46.28917709,1333.7,1333.6,0.27031209]
[1673360380725,42.92075581,1333.7,1333.6,0.27031209]
[1673360382841,46.28917709,1333.7,1333.6,0.27031209]
[1673360383893,63.14450946,1333.7,1333.6,0.27031209]
[1673360384116,59.77608818,1333.7,1333.6,0.27031209]
[1673360384363,59.77808818,1333.7,1333.6,0.27031209]
[1673360384555,63.14619924,1333.7,1333.6,0.27031209]
[1673360384893,61.12508818,1333.7,1333.6,0.27031209]
[1673360385420,64.49517414,1333.7,1333.6,0.27031209]
[1673360385567,64.49516349,1333.7,1333.6,0.27031209]
[1673360385781,64.49512101,1333.7,1333.6,0.27031209]
[1673360386261,64.49475445,1333.7,1333.6,0.27031209]
[1673360387105,64.49475472,1333.7,1333.6,0.27031209]
[1673360387802,60.82590765,1333.7,1333.6,0.27031209]
[1673360388019,47.04290765,1333.7,1333.6,0.27031209]
[1673360388425,43.67287482,1333.7,1333.6,0.27031209]
[1673360388635,47.04290765,1333.7,1333.6,0.27031209]
[1673360389267,47.04290765,1333.7,1333.2,3.15776352]
[1673360389623,1.12273982,1333.4,1333.1,20.05793241]
[1673360389798,3.79766064,1333.3,1333.1,20.05793241]
[1673360390008,1.18873982,1333.4,1333.1,20.05793241]
[1673360390204,1.18873982,1333.4,1333.1,27.55924241]
[1673360390205,4.92040046,1333.4,1333.1,27.55924241]
[1673360390414,3.79766064,1333.4,1333.1,31.25203839]
[1673360390675,3.79766064,1333.4,1333.2,2.0]
[1673360390888,4.92040046,1333.4,1333.2,7.5007]
[1673360391048,4.92040046,1333.4,1333.2,7.5977]
[1673360392069,3.79766064,1333.4,1333.2,10.0477]
[1673360392386,4.92040046,1333.4,1333.2,25.0492]
[1673360392676,4.92040046,1333.4,1333.2,29.97737293]
[1673360392865,4.92040046,1333.4,1333.2,22.47662293]
[1673360393754,3.79766064,1333.4,1333.2,22.47662293]
[1673360394832,3.79766064,1333.4,1333.2,19.97662293]
[1673360395505,4.92040046,1333.4,1333.2,12.47587293]
[1673360395832,1.12273982,1333.4,1333.2,12.47587293]
[1673360396236,4.92040046,1333.4,1333.2,5.02517293]
[1673360398721,4.92240046,1333.4,1333.2,5.02217293]
[1673360398977,4.92040046,1333.4,1333.2,5.02517293]
[1673360399352,4.92040046,1333.4,1333.2,12.52587293]
[1673360400304,2.87284955,1333.5,1333.2,27.52737293]
[1673360400667,2.80684955,1333.5,1333.2,7.52517293]
[1673360400834,2.80684955,1333.5,1333.2,5.02517293]
[1673360401044,6.60451019,1333.5,1333.2,4.97717293]
[1673360401270,4.92040046,1333.4,1333.1,24.1506689]
[1673360401490,4.92040046,1333.4,1333.1,31.6519789]
[1673360403895,6.60451019,1333.4,1333.1,31.6519789]
[1673360404098,6.60851019,1333.4,1333.1,31.6519789]
[1673360405772,6.60851019,1333.4,1333.1,30.3029789]
[1673360406131,6.60851019,1333.4,1333.1,33.21199943]
[1673360408914,1.12273982,1333.3,1333.1,33.21199943]
[1673360409167,1.12273982,1333.3,1333.1,33.06198443]
[1673360409552,6.67051019,1333.4,1333.1,23.54384103]
[1673360409809,6.60851019,1333.4,1333.1,20.75215702]
[1673360410336,6.60851019,1333.4,1333.1,23.54384103]
[1673360410487,6.60851019,1333.4,1333.1,20.75215702]
[1673360410704,1.12273982,1333.3,1333.1,20.75215702]
[1673360410912,1.12273982,1333.3,1333.1,5.74954702]
[1673360411230,3.79766064,1333.2,1333.1,0.049]
[1673360411465,32.31761902,1333.2,1333.0,0.05894138]
[1673360411649,4.92155711,1333.1,1333.0,0.05894138]
[1673360411883,23.19351676,1333.1,1333.0,0.05894138]
[1673360412236,30.69882676,1333.1,1333.0,0.05894138]
[1673360412839,32.38293649,1333.1,1333.0,0.05894138]
[1673360413009,30.69882676,1333.1,1333.0,0.05894138]
[1673360414531,32.38293649,1333.1,1333.0,0.05894138]
[1673360414728,24.88162649,1333.1,1333.0,0.05894138]
[1673360414949,23.19751676,1333.1,1333.0,0.05894138]
[1673360415116,24.54351676,1333.1,1333.0,0.05894138]
[1673360415489,36.16784002,1333.1,1333.0,0.05894138]
[1673360416379,38.41331966,1333.1,1333.0,0.05894138]
[1673360417268,36.16784002,1333.1,1333.0,0.05894138]
[1673360417475,36.39784002,1333.1,1333.0,0.05894138]
[1673360417788,37.14995903,1333.1,1333.0,0.05894138]
[1673360418224,15.76832634,1333.1,1333.0,0.05894138]
[1673360418372,15.53831132,1333.1,1333.0,0.05894138]
[1673360418746,14.41602903,1333.1,1333.0,0.05894138]
[1673360419053,15.53783571,1333.1,1333.0,0.05894138]
[1673360419277,23.03914571,1333.1,1333.0,0.05894138]
[1673360419422,29.41864903,1333.1,1333.0,0.05894138]
[1673360419632,34.42264904,1333.1,1333.0,0.05894138]
[1673360420372,47.85969178,1333.1,1333.0,0.05894138]
[1673360420621,48.08804021,1333.1,1333.0,0.05894138]
[1673360420792,44.39814642,1333.1,1333.0,0.05894138]
[1673360421211,46.08009321,1333.1,1333.0,0.05894138]
[1673360421666,49.76998808,1333.1,1333.0,0.05894138]
[1673360422092,49.9974112,1333.1,1333.0,0.05894138]
[1673360422306,62.4314112,1333.1,1332.9,0.06269264]
[1673360422498,42.34600026,1333.0,1332.9,0.06269264]
[1673360422707,43.88679964,1333.0,1332.9,0.06269264]
[1673360422886,22.88456109,1333.0,1332.9,0.06269264]
[1673360423103,15.52516064,1333.0,1332.9,0.06269264]
[1673360423311,38.03077064,1333.0,1332.9,0.06269264]
[1673360423531,30.52890064,1333.0,1332.9,0.06269264]
[1673360423776,39.71414827,1333.0,1332.9,0.06269264]
[1673360424098,24.71040827,1333.0,1332.9,0.06269264]
[1673360424308,31.09170064,1333.0,1332.9,0.06269264]
[1673360424519,16.08796064,1333.0,1332.9,0.06269264]
[1673360425468,23.58983064,1333.0,1332.9,0.06269264]
[1673360425637,16.08796064,1333.0,1332.9,0.06269264]
[1673360425849,23.58983064,1333.0,1332.9,0.06269264]
[1673360426596,31.09170064,1333.0,1332.9,0.06269264]
[1673360427619,38.59357064,1333.0,1332.9,0.06269264]
[1673360428200,39.71414827,1333.0,1332.9,0.06269264]
[1673360429139,39.71414827,1333.0,1332.6,12.59616613]
[1673360429354,3.79766064,1332.9,1332.6,12.59616613]
[1673360429513,3.79766064,1332.8,1332.6,12.59616613]
[1673360429718,11.30077064,1332.8,1332.6,0.69786613]
[1673360429952,10.18765607,1332.8,1332.6,0.64886613]
[1673360430511,2.68454607,1332.8,1332.6,0.64886613]
[1673360430677,2.68054607,1332.8,1332.6,0.64886613]
[1673360431358,10.18361607,1332.8,1332.6,0.64886613]
[1673360431666,10.18761607,1332.8,1332.6,0.64886613]
[1673360434066,3.79766064,1332.7,1332.6,0.64886613]
[1673360434243,11.30122064,1332.7,1332.6,0.64886613]
[1673360434607,11.30522064,1332.7,1332.6,0.64886613]
[1673360436800,3.80166064,1332.7,1332.6,0.64886613]
[1673360436970,3.79766064,1332.7,1332.6,0.64886613]
[1673360437181,6.80438697,1332.7,1332.6,0.64886613]
[1673360437442,6.80838697,1332.7,1332.6,0.64886613]
[1673360437708,14.31194697,1332.7,1332.6,0.64886613]
[1673360438652,21.81550697,1332.7,1332.6,0.64886613]
[1673360438867,29.31906697,1332.7,1332.6,0.64886613]
[1673360439650,29.88196697,1332.7,1332.6,0.64886613]
[1673360440024,29.88396697,1332.7,1332.6,0.64886613]
[1673360440231,29.88196697,1332.7,1332.6,0.64886613]
[1673360443108,29.31906697,1332.7,1332.6,0.64886613]
[1673360443847,29.88196697,1332.7,1332.6,0.64886613]
[1673360444304,34.45696697,1332.7,1332.6,0.64886613]
[1673360444636,26.95340697,1332.7,1332.6,0.64886613]
[1673360444949,26.72340697,1332.7,1332.6,0.64886613]
[1673360445738,34.22696697,1332.7,1332.6,0.64886613]
[1673360446066,34.45696697,1332.7,1332.6,0.64886613]
[1673360447566,26.95340697,1332.7,1332.6,0.64886613]
[1673360447729,34.45696697,1332.7,1332.6,0.64886613]
[1673360448208,32.88196697,1332.7,1332.6,0.64886613]
[1673360449521,34.0025446,1332.7,1332.6,0.64886613]
[1673360450331,32.88196697,1332.7,1332.6,0.64886613]
[1673360450479,34.0025446,1332.7,1332.6,0.64886613]
[1673360452167,35.68458103,1332.7,1332.6,0.64886613]
[1673360453544,34.0025446,1332.7,1332.6,0.64886613]
[1673360453760,35.68458103,1332.7,1332.6,0.64886613]
[1673360454403,35.68458103,1332.7,1332.6,0.64671771]
[1673360455403,35.68458103,1332.7,1332.6,0.49671771]
[1673360459773,37.03358103,1332.7,1332.6,0.49671771]
[1673360460520,35.9130034,1332.7,1332.6,0.49671771]
[1673360461939,42.96317436,1332.7,1332.6,0.49671771]
[1673360462168,37.26781652,1332.7,1332.6,0.49671771]
[1673360462570,41.78381652,1332.7,1332.6,0.49671771]
[1673360462948,53.38404759,1332.7,1332.6,0.49671771]
[1673360464055,49.70181652,1332.7,1332.6,0.49671771]
[1673360464625,51.94750566,1332.7,1332.6,0.49671771]
[1673360464779,53.99050566,1332.7,1332.6,0.49671771]
[1673360465667,51.74481652,1332.7,1332.6,0.49671771]
[1673360465978,53.99094739,1332.7,1332.6,0.49671771]
[1673360466188,51.74481652,1332.7,1332.6,0.49671771]
[1673360466515,53.37305382,1332.7,1332.6,0.49671771]
[1673360466667,56.74308665,1332.7,1332.6,0.49671771]
[1673360467504,53.37305382,1332.7,1332.6,0.49671771]
[1673360467772,52.49810566,1332.7,1332.6,0.49671771]
[1673360467924,40.06410566,1332.7,1332.6,0.49671771]
[1673360468298,39.86229709,1332.7,1332.6,0.49671771]
[1673360468448,37.61598665,1332.7,1332.6,0.49671771]
[1673360469402,50.6119998,1332.7,1332.5,0.06223712]
[1673360469638,32.34851231,1332.6,1332.5,0.06223712]
[1673360469971,35.27120064,1332.6,1332.5,0.06223712]
[1673360470359,37.51745047,1332.6,1332.5,0.06223712]
[1673360470783,35.27120064,1332.6,1332.5,0.06223712]
[1673360471707,37.51792115,1332.6,1332.5,0.06223712]
[1673360472140,35.27120064,1332.6,1332.5,0.06223712]
[1673360472337,37.5174875,1332.6,1332.5,0.06223712]
[1673360472967,37.5174875,1332.6,1332.5,0.80319679]
[1673360473197,34.70899583,1332.6,1332.5,0.80319679]
[1673360473542,37.5174875,1332.6,1332.5,0.80319679]
[1673360475696,35.27120064,1332.6,1332.5,0.80319679]
[1673360476395,42.34425437,1332.6,1332.5,0.80319679]
[1673360476692,38.67470897,1332.6,1332.5,0.80319679]
[1673360476907,41.48304236,1332.6,1332.5,0.80319679]
[1673360477065,38.67470897,1332.6,1332.5,0.80319679]
[1673360477495,41.48328935,1332.6,1332.5,0.80319679]
[1673360478136,42.04628685,1332.6,1332.5,0.80319679]
[1673360483851,49.96428685,1332.6,1332.5,0.80319679]
[1673360485373,47.15570897,1332.6,1332.5,0.80319679]
[1673360485633,49.96428305,1332.6,1332.5,0.80319679]
[1673360485942,49.96426816,1332.6,1332.5,0.80319679]
[1673360486157,52.21097065,1332.6,1332.5,0.80319679]
[1673360486465,51.64797065,1332.6,1332.5,0.80319679]
[1673360486844,49.40126816,1332.6,1332.5,0.80319679]
[1673360488409,41.48326816,1332.6,1332.5,0.80319679]
[1673360488866,36.96726816,1332.6,1332.5,0.80319679]
[1673360489086,37.28841848,1332.6,1332.5,0.80319679]
[1673360489303,35.04126816,1332.6,1332.5,0.80319679]
[1673360491288,35.83426816,1332.6,1332.5,0.80319679]
[1673360491496,45.45970897,1332.6,1332.5,0.80319679]
[1673360491724,48.8297418,1332.6,1332.5,0.80319679]
[1673360492035,50.5257418,1332.6,1332.5,0.80319679]
[1673360493894,55.89239397,1332.6,1332.5,0.80111395]
[1673360494138,56.44956749,1332.6,1332.5,0.80111395]
[1673360495084,52.52236114,1332.6,1332.5,0.80111395]
[1673360496246,56.44956749,1332.6,1332.5,0.80111395]
[1673360498717,56.44956749,1332.6,1332.3,0.04881868]
[1673360498718,13.94508397,1332.4,1332.3,0.04881868]
[1673360498925,44.40125391,1332.4,1332.3,0.04881868]
[1673360499186,59.41175391,1332.4,1332.3,0.04881868]
[1673360501049,59.97475391,1332.4,1332.3,0.04881868]
[1673360501235,59.41175391,1332.4,1332.3,0.04881868]
[1673360501565,59.97475391,1332.4,1332.3,0.04881868]
[1673360502501,30.02776,1332.1,1332.0,8.6305523]
[1673360502706,42.78575426,1332.1,1332.0,0.7774523]
[1673360502949,42.78575426,1332.1,1332.0,0.7284523]
[1673360502950,54.90432567,1332.1,1332.0,0.7284523]
[1673360503167,2.5,1332.0,1331.9,0.08539235]
[1673360503337,54.31741824,1332.0,1331.9,2.35e-06]
[1673360503565,54.31741824,1332.0,1331.8,0.05996495]
[1673360503566,54.32141824,1332.0,1331.8,0.05996495]
[1673360503918,54.32141824,1332.0,1331.8,4.95e-06]
[1673360503919,4.92086396,1331.9,1331.8,4.95e-06]
[1673360504070,7.92086396,1331.9,1331.8,4.95e-06]
[1673360504281,6.80166064,1331.9,1331.8,4.95e-06]
[1673360504919,2.68378077,1331.9,1331.8,4.95e-06]
[1673360505163,2.67978077,1331.9,1331.8,4.95e-06]
[1673360505380,2.67978077,1331.9,1331.8,2.50000495]
[1673360505593,0.066,1332.0,1331.8,19.45346883]
[1673360505765,1.18920332,1332.2,1331.9,1.71547172]
[1673360505979,4.12320332,1332.2,1332.0,1.696]
[1673360506406,4.12320332,1332.2,1332.0,1.72746936]
[1673360506637,7.92086396,1332.2,1332.0,0.03146936]
[1673360506809,1.12320332,1332.1,1332.0,0.03146936]
[1673360507700,21.61966918,1332.1,1331.8,13.69450883]
[1673360507914,3.79766064,1332.0,1331.8,11.75830495]
[1673360508075,3.79766064,1331.9,1331.8,11.75830495]
[1673360508297,3.79766064,1331.9,1331.8,0.04900495]
[1673360508624,3.79766064,1331.9,1331.8,4.95e-06]
[1673360509861,3.79766064,1331.9,1331.8,7.50863495]
[1673360510066,3.79766064,1331.9,1331.8,10.05763495]
[1673360510350,3.79766064,1331.9,1331.8,12.99155018]
[1673360510650,3.79766064,1331.9,1331.8,2.98292018]
[1673360510824,3.79766064,1331.9,1331.8,2.93392018]
[1673360511037,3.79766064,1331.9,1331.8,5.43392018]
[1673360511228,3.79766064,1331.9,1331.8,5.48292018]
[1673360511650,3.79766064,1331.9,1331.8,2.98292018]
[1673360511906,3.79766064,1331.9,1331.8,2.93392018]
[1673360512227,3.79766064,1331.9,1331.8,4.95e-06]
[1673360512805,11.30573064,1331.9,1331.8,4.95e-06]
[1673360513139,26.32587064,1331.9,1331.8,4.95e-06]
[1673360515538,27.44907396,1331.9,1331.8,4.95e-06]
[1673360515753,29.13507396,1331.9,1331.8,4.95e-06]
[1673360515996,33.36828357,1331.9,1331.8,4.95e-06]
[1673360516808,32.24508025,1331.9,1331.8,4.95e-06]
[1673360517020,3.80166064,1331.9,1331.8,4.95e-06]
[1673360517240,3.79766064,1331.9,1331.8,4.95e-06]
[1673360517656,11.30573064,1331.9,1331.8,4.95e-06]
[1673360517893,3.80166064,1331.9,1331.8,4.95e-06]
[1673360518106,3.79766064,1331.9,1331.8,4.95e-06]
[1673360518719,11.30573064,1331.9,1331.8,4.95e-06]
[1673360518903,11.30973064,1331.9,1331.8,4.95e-06]
[1673360519487,18.81780064,1331.9,1331.8,4.95e-06]
[1673360519646,26.32587064,1331.9,1331.8,4.95e-06]
[1673360519861,18.81780064,1331.9,1331.8,4.95e-06]
[1673360520264,29.07693004,1331.9,1331.8,4.95e-06]
[1673360521221,30.77293004,1331.9,1331.8,4.95e-06]
[1673360521424,31.89613336,1331.9,1331.8,4.95e-06]
[1673360521638,35.68943336,1331.9,1331.8,4.95e-06]
[1673360523679,37.37435858,1331.9,1331.8,4.95e-06]
[1673360523838,35.68943336,1331.9,1331.8,4.95e-06]
[1673360524508,34.56623004,1331.9,1331.8,4.95e-06]
[1673360524777,34.56823004,1331.9,1331.8,4.95e-06]
[1673360525085,35.68943336,1331.9,1331.8,4.95e-06]
[1673360525775,40.20543336,1331.9,1331.8,4.95e-06]
[1673360526403,41.89035858,1331.9,1331.8,4.95e-06]
[1673360526876,40.76715526,1331.9,1331.8,4.95e-06]
[1673360527204,41.889092,1331.9,1331.8,4.95e-06]
[1673360527347,53.0802678,1331.9,1331.8,4.95e-06]
[1673360527557,54.7642678,1331.9,1331.8,4.95e-06]
[1673360527984,54.01214879,1331.9,1331.8,4.95e-06]
[1673360528225,56.25871575,1331.9,1331.8,4.95e-06]
[1673360528442,54.57379053,1331.9,1331.8,4.95e-06]
[1673360528652,55.32590954,1331.9,1331.8,4.95e-06]
[1673360529862,58.13406045,1331.9,1331.8,4.95e-06]
[1673360530209,38.82036322,1331.8,1331.7,0.06769736]
[1673360530403,60.54735831,1331.8,1331.7,0.06769736]
[1673360530611,62.05159633,1331.8,1331.7,0.06769736]
[1673360530824,61.29947732,1331.8,1331.7,0.06769736]
[1673360531150,63.726692,1331.8,1331.7,0.06769736]
[1673360531359,67.3696841,1331.8,1331.7,0.06769736]
[1673360532015,67.36968598,1331.8,1331.7,0.06769736]
[1673360532338,63.726692,1331.8,1331.7,0.06769736]
[1673360532501,62.04356509,1331.8,1331.7,0.06769736]
[1673360532968,63.72754923,1331.8,1331.7,0.06769736]
[1673360534225,65.68619435,1331.8,1331.7,0.06769736]
[1673360534405,68.49434526,1331.8,1331.7,0.06769736]
[1673360534597,65.68619435,1331.8,1331.7,0.06769736]
[1673360534807,68.49434526,1331.8,1331.7,0.06769736]
[1673360535491,67.81034526,1331.8,1331.7,0.06769736]
[1673360536639,64.167716,1331.8,1331.7,0.06769736]
[1673360536850,67.80998237,1331.8,1331.7,7.36e-06]
[1673360537035,65.00183146,1331.8,1331.7,7.36e-06]
[1673360537244,67.80998237,1331.8,1331.7,7.36e-06]
[1673360537582,67.80998237,1331.8,1331.3,0.7284523]
[1673360537583,12.434,1331.6,1331.3,0.7284523]
[1673360537926,11.30855064,1331.4,1331.3,0.7284523]
[1673360538143,26.56433064,1331.4,1331.3,0.7284523]
[1673360538288,29.56433064,1331.4,1331.3,0.7284523]
[1673360539805,6.80166064,1331.4,1331.3,0.7284523]
[1673360540232,21.82344064,1331.4,1331.3,0.7284523]
[1673360540382,29.33433064,1331.4,1331.3,0.7284523]
[1673360540596,30.50214409,1331.4,1331.3,0.7284523]
[1673360540863,30.73214409,1331.4,1331.3,0.7284523]
[1673360542216,30.72973706,1331.4,1331.3,0.7284523]
[1673360545150,35.24573706,1331.4,1331.3,0.7284523]
[1673360545564,49.50315462,1331.4,1331.3,0.7284523]
[1673360545755,51.94107798,1331.4,1331.1,0.08983859]
[1673360545965,35.19870064,1331.2,1331.1,0.08983859]
[1673360546218,38.3770559,1331.2,1331.1,0.08983859]
[1673360546396,37.48856173,1331.2,1331.1,0.08983859]
[1673360546600,7.44052173,1331.2,1331.1,0.08983859]
[1673360546818,2.91316647,1331.2,1331.1,0.08983859]
[1673360547061,10.42117647,1331.2,1331.1,0.08983859]
[1673360547378,10.42517647,1331.2,1331.1,0.08983859]
[1673360547687,2.91316647,1331.2,1331.1,0.08983859]
[1673360547849,2.90916647,1331.2,1331.1,0.08983859]
[1673360548268,25.21519647,1331.2,1331.1,0.08983859]
[1673360548511,28.63271612,1331.2,1331.1,0.08983859]
[1673360548706,28.86271612,1331.2,1331.1,0.08983859]
[1673360549771,30.20571612,1331.2,1331.1,0.08983859]
[1673360550174,19.28018647,1331.2,1331.1,0.08983859]
[1673360550629,26.79219647,1331.2,1331.1,0.08983859]
[1673360550946,19.28018647,1331.2,1331.1,0.08983859]
[1673360551167,26.79219647,1331.2,1331.1,0.08983859]
[1673360551343,19.28018647,1331.2,1331.1,0.08983859]
[1673360551535,31.45995173,1331.2,1331.1,0.08983859]
[1673360552702,23.94794173,1331.2,1331.1,0.08983859]
[1673360552918,31.45995173,1331.2,1331.1,0.08983859]
[1673360553900,30.11695173,1331.2,1331.1,0.08983859]
[1673360554196,2.91316647,1331.2,1331.1,0.51274229]
[1673360554405,2.90916647,1331.2,1331.1,0.51274229]
[1673360554618,20.93318647,1331.2,1331.1,0.51274229]
[1673360554844,34.31219647,1331.2,1331.1,0.51274229]
[1673360555229,30.35979647,1331.2,1331.1,0.51274229]
[1673360555456,6.24676647,1331.2,1331.1,0.51274229]
[1673360555671,5.68316647,1331.2,1331.1,0.51274229]
[1673360556113,20.70718647,1331.2,1331.1,0.51274229]
[1673360556266,13.75877647,1331.2,1331.1,0.51274229]
[1673360556478,17.91942812,1331.2,1331.1,0.51274229]
[1673360556923,22.66542812,1331.2,1331.1,0.51274229]
[1673360557135,15.15341812,1331.2,1331.1,0.51274229]
[1673360557313,30.17743812,1331.2,1331.1,0.51274229]
[1673360557524,37.68944812,1331.2,1331.1,0.51274229]
[1673360559100,40.39544812,1331.2,1331.1,0.51274229]
[1673360559358,41.51775247,1331.2,1331.1,0.51274229]
[1673360559747,55.1640567,1331.2,1331.1,0.51274229]
[1673360560163,51.53787148,1331.2,1331.1,0.51274229]
[1673360561360,51.53987148,1331.2,1331.1,0.51274229]
[1673360561582,51.53787148,1331.2,1331.1,0.51274229]
[1673360562392,55.16404831,1331.2,1331.1,0.51274229]
[1673360562681,51.53787148,1331.2,1331.1,0.51274229]
[1673360563457,51.53987148,1331.2,1331.1,0.51274229]